[Event "RUS-ch Women Rapid 2019"]
[Site "Sochi"]
[Date "2019.10.15"]
[Round "3.9"]
[White "Belkova, Diana"]
[Black "Murashova, Ekaterina"]
[Result "1-0"]
[ECO "B27"]
[WhiteElo "2030"]
[BlackElo "2248"]
[Annotator "NA"]
[PlyCount "51"]
[EventDate "2019.10.15"]
[EventType "swiss"]
[EventCountry "RUS"]
[SourceTitle "playchess.com"]
[Source "ChessBase"]
[SourceQuality "1"]
[TimeControl "900+10"]

1. e4 {[%emt 0:00:00]} c5 {[%emt 0:00:00]} 2. Nf3 {[%emt 0:00:10]} g6 {[%emt 0:00:10]} 3. c3 {[%emt 0:00:10]} Bg7 {[%emt 0:00:05]} 4. d4 {[%emt 0:00:01]} cxd4 {[%emt 0:00:03]} 5. cxd4 {[%emt 0:00:01]} d5 {[%emt 0:00:01]} 6. exd5 {[%emt 0:00:22]} Nf6 {[%emt 0:00:25]} 7. Nc3 {[%emt 0:01:00]} Nxd5 {[%emt 0:00:45]} 8. Qb3 {[%emt 0:01:26]} Nb6 {[%emt 0:02:45]} 9. Bb5+ {[%emt 0:02:01]} Bd7 {[%emt 0:00:26]} 10. O-O {[%emt 0:00:03]} O-O {[%emt 0:00:07]} 11. Bg5 {[%emt 0:01:08]} h6 {[%emt 0:03:12]} 12. Bh4 {[%emt 0:00:29]} Bxb5 {[%emt 0:00:22]} 13. Qxb5 {[%emt 0:00:03]} Na6 {[%emt 0:02:50]} 14. Rfe1 {[%emt 0:01:00]} g5 {[%emt 0:00:26]} 15. Bg3 {[%emt 0:00:09]} Nc7 {[%emt 0:00:14]} 16. Qb3 {[%emt 0:00:02]} e6 {[%emt 0:00:33]} 17. Be5 {[%emt 0:02:06]} Ncd5 {[%emt 0:00:57]} 18. Ne4 {[%emt 0:00:46]} g4 {[%emt 0:03:01]} 19. Bxg7 {[%emt 0:00:21]} Kxg7 {[%emt 0:00:14]} 20. Ne5 {[%emt 0:00:23]} f6 {[%emt 0:00:16]} 21. Nxg4 {[%emt 0:00:03]} f5 {[%emt 0:00:03]} 22. Nc5 {[%emt 0:00:02]} Nf4 {[%emt 0:00:25]} 23. Ne5 {[%emt 0:02:32]} Qxd4 {[%emt 0:00:04]} 24. Qg3+ {[%emt 0:01:33]} Kh8 {[%emt 0:00:39]} 25. Nb3 {[%emt 0:00:21]} Nh5 {[%emt 0:00:47]} 26. Ng6+ {[%emt 0:01:23]} 1-0

[Event "RUS-ch Women Rapid 2019"]
[Site "Sochi"]
[Date "2019.10.15"]
[Round "3.10"]
[White "Pogonina, Natalija"]
[Black "Gubernatorova, Lyudmila"]
[Result "1-0"]
[ECO "A45"]
[WhiteElo "2501"]
[BlackElo "2200"]
[Annotator "ChessBase"]
[PlyCount "97"]
[EventDate "2019.10.15"]
[EventType "swiss"]
[EventCountry "RUS"]
[SourceTitle "playchess.com"]
[Source "ChessBase"]
[SourceQuality "1"]
[TimeControl "900+10"]

1. d4 {[%emt 0:00:00]} Nf6 {[%emt 0:00:00]} 2. g3 {[%emt 0:00:00]} c5 {[%emt 0:00:00]} 3. d5 {[%emt 0:00:02]} e6 {[%emt 0:00:01]} 4. Nc3 {[%emt 0:00:27]} exd5 {[%emt 0:01:11]} 5. Nxd5 {[%emt 0:00:03]} Nxd5 {[%emt 0:00:05]} 6. Qxd5 {[%emt 0:00:02]} Nc6 {[%emt 0:00:02]} 7. c3 {[%emt 0:01:30]} Be7 {[%emt 0:00:21]} 8. Nf3 {[%emt 0:00:18]} d6 {[%emt 0:00:34]} 9. Bg2 {[%emt 0:00:20]} O-O {[%emt 0:00:23]} 10. O-O {[%emt 0:00:14]} Be6 {[%emt 0:00:00]} 11. Qh5 {[%emt 0:00:52]} d5 {[%emt 0:00:28]} 12. Rd1 {[%emt 0:01:39]} Qb6 {[%emt 0:00:28]} 13. b3 {[%emt 0:00:56]} Rad8 {[%emt 0:00:06]} 14. Ng5 {[%emt 0:00:12]} Bxg5 {[%emt 0:00:28]} 15. Bxg5 {[%emt 0:00:02]} f6 {[%emt 0:00:08]} 16. Bf4 {[%emt 0:00:33]} d4 {[%emt 0:00:14]} 17. Bd2 {[%emt 0:01:30]} Bf7 {[%emt 0:01:04]} 18. Qh4 {[%emt 0:00:16]} Bg6 {[%emt 0:00:35]} 19. c4 {[%emt 0:00:28]} Rfe8 {[%emt 0:00:10]} 20. e4 {[%emt 0:00:40]} a5 {[%emt 0:01:00]} 21. Rab1 {[%emt 0:00:18]} Rd7 {[%emt 0:01:23]} 22. Re1 {[%emt 0:00:44]} Rde7 {[%emt 0:00:06]} 23. Qg4 {[%emt 0:00:22]} Ne5 {[%emt 0:00:14]} 24. Qe2 {[%emt 0:00:10]} Nc6 {[%emt 0:00:16]} 25. Qd3 {[%emt 0:01:40]} Ne5 {[%emt 0:00:22]} 26. Qc2 {[%emt 0:00:19]} Nc6 {[%emt 0:00:13]} 27. a3 {[%emt 0:00:12]} Qc7 {[%emt 0:00:27]} 28. f4 {[%emt 0:00:28]} Qd7 {[%emt 0:00:23]} 29. Qd3 {[%emt 0:00:06]} Kh8 {[%emt 0:00:18]} 30. h3 {[%emt 0:00:09]} h6 {[%emt 0:00:32]} 31. g4 {[%emt 0:00:23]} Qc7 {[%emt 0:00:32]} 32. Re2 {[%emt 0:00:28]} Bh7 {[%emt 0:00:25]} 33. Rbe1 {[%emt 0:00:16]} g5 {[%emt 0:01:06]} 34. Rf1 {[%emt 0:00:08]} gxf4 {[%emt 0:02:25]} 35. Bxf4 {[%emt 0:00:03]} Ne5 {[%emt 0:00:05]} 36. Qg3 {[%emt 0:00:11]} Rg8 {[%emt 0:00:14]} 37. Bxh6 {[%emt 0:00:35]} Qd7 {[%emt 0:00:49]} 38. Ref2 {[%emt 0:00:49]} d3 {[%emt 0:00:26]} 39. Be3 {[%emt 0:00:27]} b6 {[%emt 0:00:16]} 40. Rxf6 {[%emt 0:00:23]} a4 {[%emt 0:00:34]} 41. Rxb6 {[%emt 0:00:35]} axb3 {[%emt 0:00:29]} 42. Bxc5 {[%emt 0:00:22]} Nxc4 {[%emt 0:00:28]} 43. Rxb3 {[%emt 0:00:43]} d2 {[%emt 0:00:39]} 44. Rd3 {[%emt 0:00:41]} Qc7 {[%emt 0:00:28]} 45. Bxe7 {[%emt 0:00:52]} Qxe7 {[%emt 0:00:09]} 46. Rd4 {[%emt 0:00:11]} Qc5 {[%emt 0:00:13]} 47. Qf2 {[%emt 0:00:02]} Rb8 {[%emt 0:00:16]} 48. Kh1 {[%emt 0:00:13]} Qc7 {[%emt 0:00:19]} 49. Qf6+ {[%emt 0:00:13]} 1-0

[Event "RUS-ch Women Rapid 2019"]
[Site "Sochi"]
[Date "2019.10.15"]
[Round "3.11"]
[White "Lysenko, Maria"]
[Black "Vasilevich, Tatjana"]
[Result "1-0"]
[ECO "D38"]
[WhiteElo "1986"]
[BlackElo "2265"]
[Annotator "NA"]
[PlyCount "61"]
[EventDate "2019.10.15"]
[EventType "swiss"]
[EventCountry "RUS"]
[SourceTitle "playchess.com"]
[Source "ChessBase"]
[SourceQuality "1"]
[TimeControl "900+10"]

1. Nf3 {[%emt 0:00:00]} Nf6 {[%emt 0:00:02]} 2. c4 {[%emt 0:00:00]} e6 {[%emt 0:00:15]} 3. Nc3 {[%emt 0:00:00]} d5 {[%emt 0:00:02]} 4. d4 {[%emt 0:00:01]} Bb4 {[%emt 0:00:06]} 5. Qa4+ {[%emt 0:00:35]} Nc6 {[%emt 0:00:03]} 6. Ne5 {[%emt 0:00:06]} Bd7 {[%emt 0:00:08]} 7. Nxc6 {[%emt 0:01:34]} Bxc3+ {[%emt 0:00:04]} 8. bxc3 {[%emt 0:00:01]} Bxc6 {[%emt 0:00:12]} 9. Qb3 {[%emt 0:00:49]} O-O {[%emt 0:02:56]} 10. Bg5 {[%emt 0:02:13]} dxc4 {[%emt 0:06:25]} 11. Qxc4 {[%emt 0:00:02]} Qd5 {[%emt 0:00:20]} 12. Qxd5 {[%emt 0:00:11]} Nxd5 {[%emt 0:00:03]} 13. Bd2 {[%emt 0:00:06]} b5 {[%emt 0:00:59]} 14. e4 {[%emt 0:00:21]} Nb6 {[%emt 0:00:05]} 15. f3 {[%emt 0:00:09]} f5 {[%emt 0:00:34]} 16. exf5 {[%emt 0:01:13]} exf5 {[%emt 0:00:44]} 17. Kf2 {[%emt 0:00:16]} g6 {[%emt 0:01:53]} 18. Bd3 {[%emt 0:00:08]} Rfe8 {[%emt 0:00:05]} 19. Rhe1 {[%emt 0:00:03]} a6 {[%emt 0:00:30]} 20. Rxe8+ {[%emt 0:00:13]} Rxe8 {[%emt 0:00:01]} 21. Re1 {[%emt 0:00:06]} Kf7 {[%emt 0:00:17]} 22. Rxe8 {[%emt 0:00:06]} Kxe8 {[%emt 0:00:02]} 23. Ke3 {[%emt 0:00:33]} Ke7 {[%emt 0:00:42]} 24. Kf2 {[%emt 0:01:48]} Bd5 {[%emt 0:00:18]} 25. a3 {[%emt 0:00:13]} Bc4 {[%emt 0:00:22]} 26. Bc2 {[%emt 0:00:44]} Ke6 {[%emt 0:00:53]} 27. Ke3 {[%emt 0:00:37]} Nd5+ {[%emt 0:00:04]} 28. Kf2 {[%emt 0:00:07]} a5 {[%emt 0:00:28]} 29. g4 {[%emt 0:00:44]} fxg4 {[%emt 0:00:37]} 30. fxg4 {[%emt 0:00:02]} Nb6 {[%emt 0:00:37]} 31. Ke3 1-0

[Event "RUS-ch Women Rapid 2019"]
[Site "Sochi"]
[Date "2019.10.15"]
[Round "4.1"]
[White "Kovanova, Baira"]
[Black "Sukhareva, Evgeniya"]
[Result "0-1"]
[ECO "A05"]
[WhiteElo "2288"]
[BlackElo "2122"]
[Annotator "NA"]
[PlyCount "176"]
[EventDate "2019.10.15"]
[EventType "swiss"]
[EventCountry "RUS"]
[SourceTitle "playchess.com"]
[Source "ChessBase"]
[SourceQuality "1"]
[TimeControl "900+10"]

1. Nf3 {[%emt 0:00:00]} Nf6 {[%emt 0:00:00]} 2. c4 {[%emt 0:00:00]} e6 {[%emt 0:00:02]} 3. e3 {[%emt 0:00:00]} b6 {[%emt 0:00:30]} 4. b3 {[%emt 0:00:00]} Bb7 {[%emt 0:00:09]} 5. Bb2 {[%emt 0:00:01]} Be7 {[%emt 0:00:17]} 6. Nc3 {[%emt 0:00:04]} O-O {[%emt 0:00:04]} 7. Be2 {[%emt 0:00:03]} c5 {[%emt 0:00:15]} 8. O-O {[%emt 0:00:13]} d6 {[%emt 0:00:02]} 9. Qc2 {[%emt 0:00:12]} Nbd7 {[%emt 0:00:26]} 10. Rad1 {[%emt 0:00:30]} a6 {[%emt 0:00:04]} 11. d4 {[%emt 0:00:27]} Qc7 {[%emt 0:00:03]} 12. d5 {[%emt 0:00:53]} exd5 {[%emt 0:01:03]} 13. cxd5 {[%emt 0:03:16]} b5 {[%emt 0:00:18]} 14. e4 {[%emt 0:00:03]} Rfe8 {[%emt 0:00:22]} 15. a4 {[%emt 0:00:47]} b4 {[%emt 0:03:57]} 16. Nb1 {[%emt 0:00:02]} Bf8 {[%emt 0:00:37]} 17. Bd3 {[%emt 0:00:04]} g6 {[%emt 0:00:35]} 18. Nbd2 {[%emt 0:00:18]} Bg7 {[%emt 0:00:09]} 19. Nc4 {[%emt 0:00:40]} Ng4 {[%emt 0:00:42]} 20. Bxg7 {[%emt 0:01:47]} Kxg7 {[%emt 0:00:01]} 21. Ncd2 {[%emt 0:02:02]} Kg8 {[%emt 0:00:35]} 22. h3 {[%emt 0:00:48]} Ngf6 {[%emt 0:00:45]} 23. Rfe1 {[%emt 0:01:01]} Nh5 {[%emt 0:00:12]} 24. Bf1 {[%emt 0:00:35]} f6 {[%emt 0:04:41]} 25. Nc4 {[%emt 0:00:53]} Ne5 {[%emt 0:00:14]} 26. Nfd2 {[%emt 0:01:33]} Rad8 {[%emt 0:00:12]} 27. a5 {[%emt 0:00:21]} Qg7 {[%emt 0:01:10]} 28. g3 {[%emt 0:00:49]} Qh6 {[%emt 0:00:31]} 29. Ne3 {[%emt 0:00:39]} Bc8 {[%emt 0:00:54]} 30. Bg2 {[%emt 0:00:09]} Kh8 {[%emt 0:00:34]} 31. f4 {[%emt 0:00:44]} Nf7 {[%emt 0:00:03]} 32. Ndf1 {[%emt 0:00:15]} g5 {[%emt 0:00:07]} 33. Ng4 {[%emt 0:00:35]} Qg7 {[%emt 0:00:01]} 34. f5 {[%emt 0:00:07]} Ne5 {[%emt 0:00:07]} 35. Qf2 {[%emt 0:00:38]} Qe7 {[%emt 0:00:27]} 36. Nfe3 {[%emt 0:00:04]} Bd7 {[%emt 0:00:06]} 37. Bf1 {[%emt 0:00:12]} Ra8 {[%emt 0:00:09]} 38. Nxe5 {[%emt 0:00:03]} Qxe5 {[%emt 0:00:11]} 39. Nc4 {[%emt 0:00:10]} Qe7 {[%emt 0:00:03]} 40. Be2 {[%emt 0:00:04]} Ng7 {[%emt 0:00:04]} 41. Bf3 {[%emt 0:00:03]} Rg8 {[%emt 0:00:24]} 42. g4 {[%emt 0:00:04]} Ne8 {[%emt 0:00:03]} 43. Kg2 {[%emt 0:00:21]} Nc7 {[%emt 0:00:02]} 44. Rh1 {[%emt 0:00:08]} Nb5 {[%emt 0:00:10]} 45. h4 {[%emt 0:00:04]} Nd4 {[%emt 0:00:08]} 46. Rxd4 {[%emt 0:00:06]} cxd4 {[%emt 0:00:01]} 47. Qxd4 {[%emt 0:00:01]} Bb5 {[%emt 0:00:21]} 48. Nb6 {[%emt 0:00:21]} Rab8 {[%emt 0:00:29]} 49. hxg5 {[%emt 0:00:31]} Rxg5 {[%emt 0:00:02]} 50. Rc1 {[%emt 0:00:01]} Rgg8 {[%emt 0:00:07]} 51. Qxb4 {[%emt 0:00:07]} Qe5 {[%emt 0:00:24]} 52. Qc3 {[%emt 0:00:02]} Qe7 {[%emt 0:00:20]} 53. Rh1 {[%emt 0:00:16]} Rg7 {[%emt 0:00:04]} 54. b4 {[%emt 0:00:04]} Rbg8 {[%emt 0:00:03]} 55. Kf2 {[%emt 0:00:17]} Qd8 {[%emt 0:00:20]} 56. Rc1 {[%emt 0:00:14]} Qe7 {[%emt 0:00:23]} 57. Qd4 {[%emt 0:00:02]} Rg5 {[%emt 0:00:13]} 58. Nc8 {[%emt 0:00:30]} Qd8 {[%emt 0:00:09]} 59. Na7 {[%emt 0:00:08]} Qf8 {[%emt 0:00:07]} 60. Rh1 {[%emt 0:00:06]} Bd7 {[%emt 0:00:13]} 61. Nc6 {[%emt 0:00:03]} Qg7 {[%emt 0:00:06]} 62. Be2 {[%emt 0:00:08]} Bc8 {[%emt 0:00:02]} 63. Bf3 {[%emt 0:00:14]} Rf8 {[%emt 0:00:09]} 64. Be2 {[%emt 0:00:02]} Qb7 {[%emt 0:00:05]} 65. Rh6 {[%emt 0:00:09]} Qg7 {[%emt 0:00:06]} 66. Rh4 {[%emt 0:00:01]} Qb7 {[%emt 0:00:10]} 67. Qe3 {[%emt 0:00:13]} Qg7 {[%emt 0:00:09]} 68. Qd4 {[%emt 0:00:02]} Bd7 {[%emt 0:00:14]} 69. Qb6 {[%emt 0:00:44]} Re8 {[%emt 0:00:12]} 70. Bf3 {[%emt 0:00:11]} Bxc6 {[%emt 0:00:19]} 71. dxc6 {[%emt 0:00:02]} Qe7 {[%emt 0:00:09]} 72. Qd4 {[%emt 0:00:11]} Rg7 {[%emt 0:00:15]} 73. Rh6 {[%emt 0:00:05]} Rf8 {[%emt 0:00:08]} 74. c7 {[%emt 0:00:20]} Rgf7 {[%emt 0:00:16]} 75. g5 {[%emt 0:00:17]} Qxc7 {[%emt 0:00:02]} 76. g6 {[%emt 0:00:12]} Qc2+ {[%emt 0:00:15]} 77. Be2 {[%emt 0:00:02]} Rd7 {[%emt 0:00:08]} 78. gxh7 {[%emt 0:00:08]} Rdf7 {[%emt 0:00:10]} 79. b5 {[%emt 0:00:13]} axb5 {[%emt 0:00:09]} 80. a6 {[%emt 0:00:00]} Qc1 {[%emt 0:00:10]} 81. Rh4 {[%emt 0:00:21]} Qa3 {[%emt 0:00:14]} 82. Bxb5 {[%emt 0:00:11]} Rg7 {[%emt 0:00:06]} 83. Bd3 {[%emt 0:00:10]} Qc1 {[%emt 0:00:12]} 84. Bf1 {[%emt 0:00:14]} Qg5 {[%emt 0:00:02]} 85. Rh1 {[%emt 0:00:11]} Qf4+ {[%emt 0:00:04]} 86. Ke1 {[%emt 0:00:10]} Re8 {[%emt 0:00:07]} 87. Bd3 {[%emt 0:00:02]} Qg3+ {[%emt 0:00:05]} 88. Qf2 {[%emt 0:00:09]} Qxd3 {[%emt 0:00:03]} 0-1

[Event "RUS-ch Women Rapid 2019"]
[Site "Sochi"]
[Date "2019.10.15"]
[Round "4.2"]
[White "Samigullina, Diana"]
[Black "Bivol, Alina"]
[Result "1/2-1/2"]
[ECO "A48"]
[WhiteElo "2161"]
[BlackElo "2283"]
[Annotator "NA"]
[PlyCount "129"]
[EventDate "2019.10.15"]
[EventType "swiss"]
[EventCountry "RUS"]
[SourceTitle "playchess.com"]
[Source "ChessBase"]
[SourceQuality "1"]
[TimeControl "900+10"]

1. d4 {[%emt 0:00:00]} Nf6 {[%emt 0:00:00]} 2. Nf3 {[%emt 0:00:00]} g6 {[%emt 0:00:00]} 3. Bg5 {[%emt 0:00:00]} Bg7 {[%emt 0:00:03]} 4. Nbd2 {[%emt 0:00:00]} d6 {[%emt 0:00:25]} 5. e4 {[%emt 0:00:00]} O-O {[%emt 0:00:26]} 6. c3 {[%emt 0:00:01]} c5 {[%emt 0:00:03]} 7. dxc5 {[%emt 0:00:56]} dxc5 {[%emt 0:00:03]} 8. Bc4 {[%emt 0:00:02]} h6 {[%emt 0:01:05]} 9. Be3 {[%emt 0:00:28]} Qc7 {[%emt 0:00:06]} 10. h3 {[%emt 0:00:31]} Nh5 {[%emt 0:00:41]} 11. e5 {[%emt 0:02:17]} Bxe5 {[%emt 0:00:16]} 12. Bxh6 {[%emt 0:00:17]} Bg7 {[%emt 0:00:18]} 13. Bxg7 {[%emt 0:00:34]} Kxg7 {[%emt 0:00:03]} 14. O-O {[%emt 0:03:54]} Nc6 {[%emt 0:00:08]} 15. Re1 {[%emt 0:00:21]} Nf4 {[%emt 0:00:22]} 16. Bf1 {[%emt 0:00:16]} Bf5 {[%emt 0:00:15]} 17. Ne4 {[%emt 0:00:49]} Rad8 {[%emt 0:00:13]} 18. Qa4 {[%emt 0:00:27]} b6 {[%emt 0:01:52]} 19. Ng3 {[%emt 0:00:42]} Bd3 {[%emt 0:00:19]} 20. Bxd3 {[%emt 0:02:34]} Nxd3 {[%emt 0:00:10]} 21. Re2 {[%emt 0:00:12]} e5 {[%emt 0:02:15]} 22. Qg4 {[%emt 0:00:58]} Rh8 {[%emt 0:01:25]} 23. Ng5 {[%emt 0:01:07]} Qc8 {[%emt 0:01:27]} 24. Qc4 {[%emt 0:00:14]} Qc7 {[%emt 0:00:27]} 25. Qg4 {[%emt 0:00:59]} Nf4 {[%emt 0:00:23]} 26. Ree1 {[%emt 0:00:09]} Qc8 {[%emt 0:00:49]} 27. Qf3 {[%emt 0:00:53]} f6 {[%emt 0:00:41]} 28. N5e4 {[%emt 0:00:02]} Rd3 {[%emt 0:00:09]} 29. Re3 {[%emt 0:00:05]} Rhd8 {[%emt 0:00:40]} 30. Rae1 {[%emt 0:00:16]} c4 {[%emt 0:00:03]} 31. Ne2 {[%emt 0:00:30]} Rxe3 {[%emt 0:00:14]} 32. fxe3 {[%emt 0:00:21]} Nxe2+ {[%emt 0:00:21]} 33. Rxe2 {[%emt 0:00:01]} Qe6 {[%emt 0:00:08]} 34. Rf2 {[%emt 0:00:08]} f5 {[%emt 0:00:34]} 35. Ng5 {[%emt 0:00:01]} Qd6 {[%emt 0:00:01]} 36. Rf1 {[%emt 0:00:29]} Ne7 {[%emt 0:02:00]} 37. e4 {[%emt 0:00:10]} Rf8 {[%emt 0:01:13]} 38. Qg3 {[%emt 0:00:06]} fxe4 {[%emt 0:00:42]} 39. Rxf8 {[%emt 0:00:20]} Kxf8 {[%emt 0:00:00]} 40. Nxe4 {[%emt 0:00:11]} Qe6 {[%emt 0:00:18]} 41. Qh4 {[%emt 0:00:09]} Ke8 {[%emt 0:00:27]} 42. Qh8+ {[%emt 0:00:15]} Kd7 {[%emt 0:00:01]} 43. Qb8 {[%emt 0:00:07]} a5 {[%emt 0:00:36]} 44. Kh2 {[%emt 0:00:13]} Qc6 {[%emt 0:00:08]} 45. Qa7+ {[%emt 0:00:10]} Ke8 {[%emt 0:00:14]} 46. Qb8+ {[%emt 0:00:02]} Kd7 {[%emt 0:00:06]} 47. Qa7+ {[%emt 0:00:12]} Qc7 {[%emt 0:00:04]} 48. Nf6+ {[%emt 0:00:02]} Kc8 {[%emt 0:00:03]} 49. Qa8+ {[%emt 0:00:09]} Qb8 {[%emt 0:00:02]} 50. Qe4 {[%emt 0:00:05]} b5 {[%emt 0:00:20]} 51. Nd5 {[%emt 0:00:11]} Nf5 {[%emt 0:00:14]} 52. g4 {[%emt 0:00:14]} Nh4 {[%emt 0:00:26]} 53. Ne7+ {[%emt 0:00:05]} Kd7 {[%emt 0:00:01]} 54. Nxg6 {[%emt 0:00:12]} Nxg6 {[%emt 0:00:02]} 55. Qxg6 {[%emt 0:00:01]} b4 {[%emt 0:00:10]} 56. Qf7+ {[%emt 0:00:10]} Kd6 {[%emt 0:00:03]} 57. Qxc4 {[%emt 0:00:03]} bxc3 {[%emt 0:00:11]} 58. Qxc3 {[%emt 0:00:10]} Qb6 {[%emt 0:00:01]} 59. Kg3 {[%emt 0:00:05]} Qg1+ {[%emt 0:00:22]} 60. Kh4 {[%emt 0:00:03]} Qf2+ {[%emt 0:00:01]} 61. Kh5 {[%emt 0:00:33]} Qf7+ {[%emt 0:00:03]} 62. Kh4 {[%emt 0:00:12]} Qf2+ {[%emt 0:00:01]} 63. Kh5 {[%emt 0:00:19]} Qf7+ {[%emt 0:00:01]} 64. Kh4 {[%emt 0:00:04]} Qf2+ {[%emt 0:00:01]} 65. Kh5 {[%emt 0:00:22]} 1/2-1/2

[Event "RUS-ch Women Rapid 2019"]
[Site "Sochi"]
[Date "2019.10.15"]
[Round "4.3"]
[White "Karavaeva, Olga"]
[Black "Belkova, Diana"]
[Result "1/2-1/2"]
[ECO "A34"]
[WhiteElo "2260"]
[BlackElo "2030"]
[Annotator "NA"]
[PlyCount "85"]
[EventDate "2019.10.15"]
[EventType "swiss"]
[EventCountry "RUS"]
[SourceTitle "playchess.com"]
[Source "ChessBase"]
[SourceQuality "1"]
[TimeControl "900+10"]

1. c4 Nf6 2. Nc3 c5 3. g3 Nc6 4. Bg2 d6 5. Nf3 g6 6. O-O Bg7 7. d4 cxd4 8. Nxd4 Bd7 9. e3 Qc8 10. Re1 Bh3 11. Bh1 h5 12. Qa4 Bd7 13. Nxc6 Bxc6 14. Bxc6+ bxc6 15. h4 Kf8 16. Kg2 Ng4 17. e4 Bd4 18. Nd1 Kg7 19. Qc2 Qe6 20. f3 Ne5 21. Be3 Bxe3 22. Nxe3 Rhb8 23. b3 a5 24. f4 Ng4 25. Nxg4 hxg4 26. Qc3+ f6 27. f5 Qe5 28. Qxe5 dxe5 29. fxg6 Kxg6 30. Rab1 c5 31. Red1 a4 32. Rd5 axb3 33. axb3 Ra2+ 34. Kg1 Ra3 35. Rd3 Ra2 36. Re1 Rb2 37. Ree3 Ra8 38. Re1 Raa2 39. Rde3 Rg2+ 40. Kh1 Rh2+ 41. Kg1 Rhg2+ 42. Kh1 Rh2+ 43. Kg1 1/2-1/2

[Event "RUS-ch Women Rapid 2019"]
[Site "Sochi"]
[Date "2019.10.15"]
[Round "4.6"]
[White "Ambartsumova, Karina"]
[Black "Lysenko, Margarita"]
[Result "1-0"]
[ECO "A28"]
[WhiteElo "2336"]
[BlackElo "2243"]
[Annotator "NA"]
[PlyCount "79"]
[EventDate "2019.10.15"]
[EventType "swiss"]
[EventCountry "RUS"]
[SourceTitle "playchess.com"]
[Source "ChessBase"]
[SourceQuality "1"]
[TimeControl "900+10"]

1. c4 {[%emt 0:00:00]} e5 {[%emt 0:00:00]} 2. Nc3 {[%emt 0:00:04]} Nf6 {[%emt 0:00:00]} 3. Nf3 {[%emt 0:00:03]} Nc6 {[%emt 0:00:02]} 4. a3 {[%emt 0:00:03]} d5 {[%emt 0:00:47]} 5. cxd5 {[%emt 0:00:02]} Nxd5 {[%emt 0:00:02]} 6. Qc2 {[%emt 0:00:01]} Be7 {[%emt 0:01:23]} 7. e3 {[%emt 0:00:59]} a6 {[%emt 0:06:17]} 8. b4 {[%emt 0:00:53]} Nxc3 {[%emt 0:00:30]} 9. dxc3 {[%emt 0:00:12]} O-O {[%emt 0:00:42]} 10. Bd3 {[%emt 0:03:32]} f5 {[%emt 0:00:14]} 11. e4 {[%emt 0:00:02]} f4 {[%emt 0:00:30]} 12. O-O {[%emt 0:00:32]} Bg4 {[%emt 0:00:35]} 13. Be2 {[%emt 0:00:24]} Qe8 {[%emt 0:00:33]} 14. h3 {[%emt 0:01:24]} Be6 {[%emt 0:00:17]} 15. Bb2 {[%emt 0:00:14]} Bf6 {[%emt 0:00:48]} 16. c4 {[%emt 0:00:16]} Rd8 {[%emt 0:00:28]} 17. Rad1 {[%emt 0:00:50]} Qg6 {[%emt 0:00:42]} 18. Kh2 {[%emt 0:00:55]} Nd4 {[%emt 0:01:13]} 19. Bxd4 {[%emt 0:01:08]} exd4 {[%emt 0:00:02]} 20. Bd3 {[%emt 0:00:12]} Qh5 {[%emt 0:00:56]} 21. e5 {[%emt 0:00:36]} Be7 {[%emt 0:00:42]} 22. Be4 {[%emt 0:01:09]} c5 {[%emt 0:00:07]} 23. Bxb7 {[%emt 0:02:23]} g5 {[%emt 0:00:04]} 24. bxc5 {[%emt 0:01:20]} Bxc5 {[%emt 0:00:44]} 25. Bd5 {[%emt 0:00:17]} Bxd5 26. cxd5 {[%emt 0:00:01]} Rxd5 {[%emt 0:00:39]} 27. Qc4 {[%emt 0:00:47]} Rfd8 {[%emt 0:00:01]} 28. Qxa6 {[%emt 0:00:05]} d3 {[%emt 0:00:49]} 29. Qe6+ {[%emt 0:00:08]} Qf7 {[%emt 0:00:02]} 30. Nxg5 {[%emt 0:00:10]} Qxe6 {[%emt 0:00:09]} 31. Nxe6 {[%emt 0:00:01]} R8d7 {[%emt 0:00:26]} 32. Nxf4 {[%emt 0:00:07]} Rxe5 {[%emt 0:00:11]} 33. Rxd3 {[%emt 0:00:12]} Rf7 {[%emt 0:00:17]} 34. g3 {[%emt 0:00:10]} Ra7 {[%emt 0:00:13]} 35. Rd8+ {[%emt 0:00:34]} Bf8 {[%emt 0:00:03]} 36. Rb1 {[%emt 0:00:22]} Kf7 {[%emt 0:00:06]} 37. Rbb8 Bxa3 {[%emt 0:00:02]} 38. Rh8 {[%emt 0:00:45]} Kg7 39. Rbg8+ {[%emt 0:00:09]} Kh6 {[%emt 0:00:30]} 40. Rg6# {[%emt 0:00:06]} 1-0

[Event "RUS-ch Women Rapid 2019"]
[Site "Sochi"]
[Date "2019.10.15"]
[Round "4.7"]
[White "Chekmareva, Liya"]
[Black "Bykova, Anastasia"]
[Result "1/2-1/2"]
[ECO "B14"]
[WhiteElo "2023"]
[BlackElo "2247"]
[Annotator "NA"]
[PlyCount "57"]
[EventDate "2019.10.15"]
[EventType "swiss"]
[EventCountry "RUS"]
[SourceTitle "playchess.com"]
[Source "ChessBase"]
[SourceQuality "1"]
[TimeControl "900+10"]

1. e4 {[%emt 0:00:00]} c6 {[%emt 0:00:00]} 2. d4 {[%emt 0:00:00]} d5 {[%emt 0:00:00]} 3. exd5 {[%emt 0:00:06]} cxd5 {[%emt 0:00:00]} 4. c4 {[%emt 0:00:01]} e6 {[%emt 0:00:00]} 5. Nc3 {[%emt 0:00:04]} Nf6 {[%emt 0:00:00]} 6. Bg5 {[%emt 0:00:45]} Be7 {[%emt 0:00:07]} 7. Nf3 {[%emt 0:00:13]} O-O {[%emt 0:00:08]} 8. c5 {[%emt 0:00:56]} b6 {[%emt 0:00:15]} 9. b4 {[%emt 0:01:34]} a5 {[%emt 0:00:01]} 10. a3 {[%emt 0:00:12]} axb4 {[%emt 0:00:04]} 11. axb4 {[%emt 0:00:02]} Rxa1 {[%emt 0:00:02]} 12. Qxa1 {[%emt 0:00:01]} bxc5 {[%emt 0:00:01]} 13. bxc5 {[%emt 0:00:09]} Ne4 {[%emt 0:00:26]} 14. Bxe7 {[%emt 0:00:24]} Qxe7 {[%emt 0:00:01]} 15. Bd3 {[%emt 0:00:18]} Bb7 {[%emt 0:01:14]} 16. O-O {[%emt 0:00:43]} f5 {[%emt 0:02:56]} 17. Rb1 {[%emt 0:01:21]} Nc6 {[%emt 0:00:19]} 18. Ne2 {[%emt 0:04:58]} Ra8 {[%emt 0:04:45]} 19. Qb2 {[%emt 0:00:01]} Bc8 {[%emt 0:01:02]} 20. Qb6 {[%emt 0:01:51]} Bd7 {[%emt 0:00:39]} 21. Rc1 {[%emt 0:02:45]} Rb8 {[%emt 0:02:25]} 22. Qc7 {[%emt 0:00:02]} Rc8 {[%emt 0:00:05]} 23. Qb7 {[%emt 0:01:02]} Rb8 {[%emt 0:00:18]} 24. Qc7 {[%emt 0:00:02]} Rc8 {[%emt 0:00:02]} 25. Qb7 {[%emt 0:00:01]} Qd8 {[%emt 0:02:08]} 26. Qb6 {[%emt 0:01:21]} Qf6 {[%emt 0:01:29]} 27. Qb7 {[%emt 0:00:12]} Qd8 {[%emt 0:00:27]} 28. Qb6 {[%emt 0:00:02]} Qf6 {[%emt 0:00:14]} 29. Qb7 {[%emt 0:00:01]} 1/2-1/2